[Event "*** Titled Tuesday Blitz"]
[Site "Chess.com"]
[Date "2020.05.19"]
[Round "8"]
[White "tgpgoat"]
[Black "agrigo3"]
[Result "0-1"]
[WhiteElo "2045"]
[BlackElo "2262"]
[TimeControl "180+1"]
[EndTime "13:33:23 PDT"]
[Termination "agrigo3 won by resignation"]

1. e4 {[%clk 0:03:00.9]} 1... d6 {[%clk 0:02:59.4]} 2. d4 {[%clk 0:03:00.8]}
2... Nf6 {[%clk 0:02:59.9]} 3. Nc3 {[%clk 0:02:59.2]} 3... g6 {[%clk 0:03:00.1]}
4. Nf3 {[%clk 0:02:55.9]} 4... Bg7 {[%clk 0:02:59.9]} 5. Bf4 {[%clk 0:02:54.6]}
5... O-O {[%clk 0:02:59.1]} 6. Bd3 {[%clk 0:02:53.5]} 6... c6 {[%clk 0:02:59.2]}
7. O-O {[%clk 0:02:51]} 7... Nbd7 {[%clk 0:02:51.8]} 8. Ne2 {[%clk 0:02:48.5]}
8... Re8 {[%clk 0:02:49.4]} 9. e5 {[%clk 0:02:48.5]} 9... Nd5 {[%clk 0:02:48.7]}
10. Bg3 {[%clk 0:02:47.5]} 10... Nf8 {[%clk 0:02:29.7]} 11. exd6 {[%clk
0:02:45.2]} 11... exd6 {[%clk 0:02:27.3]} 12. Nf4 {[%clk 0:02:44.5]} 12... Nxf4
{[%clk 0:02:19.7]} 13. Bxf4 {[%clk 0:02:45.4]} 13... Bg4 {[%clk 0:02:19.7]} 14.
c3 {[%clk 0:02:36.4]} 14... Qf6 {[%clk 0:02:19]} 15. Bg3 {[%clk 0:02:35.4]}
15... Bxf3 {[%clk 0:02:16.6]} 16. Qxf3 {[%clk 0:02:34.8]} 16... Qxf3 {[%clk
0:02:10.4]} 17. gxf3 {[%clk 0:02:35.7]} 17... d5 {[%clk 0:02:08.8]} 18. Rfe1
{[%clk 0:02:36.2]} 18... Bh6 {[%clk 0:02:00.7]} 19. f4 {[%clk 0:02:33.8]} 19...
f5 {[%clk 0:01:54.2]} 20. Re5 {[%clk 0:02:32.3]} 20... Kf7 {[%clk 0:01:51.5]}
21. Rae1 {[%clk 0:02:31.4]} 21... Nd7 {[%clk 0:01:41.1]} 22. Rxe8 {[%clk
0:02:30.6]} 22... Rxe8 {[%clk 0:01:39.6]} 23. Rxe8 {[%clk 0:02:31.5]} 23... Kxe8
{[%clk 0:01:39.8]} 24. Kg2 {[%clk 0:02:32.4]} 24... Kf7 {[%clk 0:01:36.3]} 25.
Kf3 {[%clk 0:02:33.3]} 25... Ke6 {[%clk 0:01:32]} 26. Bh4 {[%clk 0:02:33]} 26...
Bf8 {[%clk 0:01:28.2]} 27. Bg5 {[%clk 0:02:31.4]} 27... h6 {[%clk 0:01:23.5]}
28. Bh4 {[%clk 0:02:30]} 28... Bd6 {[%clk 0:01:21.9]} 29. Bg3 {[%clk 0:02:29.1]}
29... Nf6 {[%clk 0:01:18.3]} 30. Kg2 {[%clk 0:02:28.5]} 30... Ne4 {[%clk
0:01:15.5]} 31. Bxe4 {[%clk 0:02:27.7]} 31... fxe4 {[%clk 0:01:10.7]} 32. f3
{[%clk 0:02:27.5]} 32... Kf5 {[%clk 0:01:10.5]} 33. Kf2 {[%clk 0:02:25]} 33...
Bxf4 {[%clk 0:01:09.8]} 34. fxe4+ {[%clk 0:02:22.4]} 34... Kxe4 {[%clk
0:01:02.7]} 35. Bxf4 {[%clk 0:02:22.3]} 35... Kxf4 {[%clk 0:01:02.5]} 0-1

[Event "*** Titled Tuesday Blitz"]
[Site "Chess.com"]
[Date "2020.05.19"]
[Round "8"]
[White "rakshi2005"]
[Black "Quiet_Desperation"]
[Result "0-1"]
[WhiteElo "2260"]
[BlackElo "2094"]
[TimeControl "180+1"]
[EndTime "13:33:25 PDT"]
[Termination "Quiet_Desperation won by resignation"]

1. e4 {[%clk 0:03:00.9]} 1... e5 {[%clk 0:02:54.7]} 2. Nf3 {[%clk 0:02:59.9]}
2... Nc6 {[%clk 0:02:55.1]} 3. Bc4 {[%clk 0:03:00.2]} 3... Nf6 {[%clk
0:02:55.1]} 4. O-O {[%clk 0:03:00.5]} 4... Be7 {[%clk 0:02:54]} 5. d4 {[%clk
0:03:00.1]} 5... exd4 {[%clk 0:02:53.4]} 6. Nxd4 {[%clk 0:03:01]} 6... O-O
{[%clk 0:02:52.9]} 7. Nc3 {[%clk 0:03:01]} 7... d6 {[%clk 0:02:51.6]} 8. Bf4
{[%clk 0:03:01.2]} 8... Ne5 {[%clk 0:02:47.7]} 9. Bb3 {[%clk 0:02:59.8]} 9... a6
{[%clk 0:02:42.4]} 10. h3 {[%clk 0:02:56]} 10... c5 {[%clk 0:02:38.9]} 11. Nf3
{[%clk 0:02:46.9]} 11... c4 {[%clk 0:02:29]} 12. Bxe5 {[%clk 0:02:41.9]} 12...
cxb3 {[%clk 0:02:24.3]} 13. Bh2 {[%clk 0:02:39.8]} 13... bxc2 {[%clk 0:02:22.5]}
14. Qxc2 {[%clk 0:02:37.4]} 14... Be6 {[%clk 0:02:21.9]} 15. Rad1 {[%clk
0:02:35.4]} 15... Rc8 {[%clk 0:02:21.8]} 16. Nd4 {[%clk 0:02:29]} 16... Bc4
{[%clk 0:02:11.4]} 17. Rfe1 {[%clk 0:02:27.4]} 17... Re8 {[%clk 0:02:10.7]} 18.
Nf5 {[%clk 0:02:26.9]} 18... Bf8 {[%clk 0:02:10.7]} 19. Nxd6 {[%clk 0:02:26.5]}
19... Bxd6 {[%clk 0:02:06.3]} 20. Rxd6 {[%clk 0:02:26.1]} 20... Qa5 {[%clk
0:02:05.3]} 21. e5 {[%clk 0:02:10.5]} 21... Nd5 {[%clk 0:02:00.1]} 22. Qd2
{[%clk 0:01:55.9]} 22... Nxc3 {[%clk 0:01:57.6]} 23. bxc3 {[%clk 0:01:51.1]}
23... Qxa2 {[%clk 0:01:48.3]} 24. Qg5 {[%clk 0:01:44.5]} 24... Be6 {[%clk
0:01:44.4]} 25. Rd3 {[%clk 0:01:39.8]} 25... h6 {[%clk 0:01:42.5]} 26. Qh4
{[%clk 0:01:35.7]} 26... Qc4 {[%clk 0:01:31.8]} 27. Rg3 {[%clk 0:01:34.1]} 27...
Qxh4 {[%clk 0:01:31]} 0-1

[Event "*** Titled Tuesday Blitz"]
[Site "Chess.com"]
[Date "2020.05.19"]
[Round "8"]
[White "Stormeman100100"]
[Black "Camels1981"]
[Result "1-0"]
[WhiteElo "2534"]
[BlackElo "2336"]
[TimeControl "180+1"]
[EndTime "13:33:33 PDT"]
[Termination "Stormeman100100 won by resignation"]

1. d4 {[%clk 0:03:00.9]} 1... Nf6 {[%clk 0:02:58.1]} 2. c4 {[%clk 0:03:00.6]}
2... g6 {[%clk 0:02:55.7]} 3. Nc3 {[%clk 0:03:00]} 3... Bg7 {[%clk 0:02:55.9]}
4. e4 {[%clk 0:02:59.8]} 4... O-O {[%clk 0:02:56.8]} 5. Be2 {[%clk 0:02:58.3]}
5... d6 {[%clk 0:02:57]} 6. Nf3 {[%clk 0:02:55.4]} 6... e5 {[%clk 0:02:57.5]} 7.
Be3 {[%clk 0:02:55.5]} 7... Nc6 {[%clk 0:02:56.4]} 8. d5 {[%clk 0:02:54.3]} 8...
Ne7 {[%clk 0:02:56.2]} 9. Nd2 {[%clk 0:02:54.5]} 9... Nd7 {[%clk 0:02:56.7]} 10.
f3 {[%clk 0:02:54.1]} 10... f5 {[%clk 0:02:57.3]} 11. b4 {[%clk 0:02:53.8]}
11... f4 {[%clk 0:02:57.6]} 12. Bf2 {[%clk 0:02:53.7]} 12... a5 {[%clk
0:02:58.5]} 13. a3 {[%clk 0:02:52.5]} 13... g5 {[%clk 0:02:57.1]} 14. bxa5
{[%clk 0:02:38.4]} 14... Rxa5 {[%clk 0:02:51.1]} 15. Nb3 {[%clk 0:02:38.5]}
15... Ra8 {[%clk 0:02:50.1]} 16. c5 {[%clk 0:02:38.3]} 16... Ng6 {[%clk
0:02:48.2]} 17. cxd6 {[%clk 0:02:38.2]} 17... cxd6 {[%clk 0:02:48.8]} 18. Nb5
{[%clk 0:02:37.2]} 18... Nf6 {[%clk 0:02:47.1]} 19. Qc2 {[%clk 0:02:34.6]} 19...
g4 {[%clk 0:02:40.6]} 20. Qc7 {[%clk 0:02:26.9]} 20... gxf3 {[%clk 0:02:39.1]}
21. gxf3 {[%clk 0:02:25]} 21... Bh3 {[%clk 0:01:50.9]} 22. Qxd6 {[%clk
0:02:09.1]} 22... Nxe4 {[%clk 0:01:41.4]} 23. Qxd8 {[%clk 0:01:55.8]} 23...
Raxd8 {[%clk 0:01:39.4]} 24. fxe4 {[%clk 0:01:56]} 24... Bg2 {[%clk 0:01:35.7]}
25. Rg1 {[%clk 0:01:54.2]} 25... Bxe4 {[%clk 0:01:36.2]} 26. O-O-O {[%clk
0:01:49.6]} 26... Bxd5 {[%clk 0:01:28]} 27. Rxd5 {[%clk 0:01:49.4]} 27... Rxd5
{[%clk 0:01:26.5]} 28. Bc4 {[%clk 0:01:47]} 28... Rc8 {[%clk 0:01:27]} 29. Nc5
{[%clk 0:01:47]} 29... Ne7 {[%clk 0:01:24]} 30. Nc3 {[%clk 0:01:42.8]} 1-0

[Event "*** Titled Tuesday Blitz"]
[Site "Chess.com"]
[Date "2020.05.19"]
[Round "8"]
[White "ChristopherYoo"]
[Black "GMStefanova"]
[Result "1-0"]
[WhiteElo "2873"]
[BlackElo "2635"]
[TimeControl "180+1"]
[EndTime "13:33:50 PDT"]
[Termination "ChristopherYoo won by resignation"]

1. e4 {[%clk 0:03:00.9]} 1... e5 {[%clk 0:02:59.8]} 2. Nf3 {[%clk 0:02:59.4]}
2... Nc6 {[%clk 0:03:00]} 3. Bb5 {[%clk 0:02:59]} 3... a6 {[%clk 0:03:00.4]} 4.
Ba4 {[%clk 0:02:58.9]} 4... g6 {[%clk 0:03:00.8]} 5. d4 {[%clk 0:02:58.3]} 5...
b5 {[%clk 0:03:00.2]} 6. Bb3 {[%clk 0:02:57.2]} 6... exd4 {[%clk 0:03:00.2]} 7.
c3 {[%clk 0:02:57.7]} 7... Bg7 {[%clk 0:02:58.7]} 8. cxd4 {[%clk 0:02:57.3]}
8... Nge7 {[%clk 0:02:55.6]} 9. d5 {[%clk 0:02:57.5]} 9... Na5 {[%clk
0:02:54.3]} 10. Bd2 {[%clk 0:02:57.8]} 10... Nxb3 {[%clk 0:02:53.9]} 11. axb3
{[%clk 0:02:58.7]} 11... O-O {[%clk 0:02:49.7]} 12. Bc3 {[%clk 0:02:36.3]} 12...
f5 {[%clk 0:02:49.2]} 13. Bxg7 {[%clk 0:02:29.4]} 13... Kxg7 {[%clk 0:02:49.5]}
14. Nc3 {[%clk 0:02:20]} 14... b4 {[%clk 0:02:46.7]} 15. Qd4+ {[%clk 0:02:18.6]}
15... Kg8 {[%clk 0:02:46.3]} 16. Qxb4 {[%clk 0:02:15]} 16... fxe4 {[%clk
0:02:45.5]} 17. Qxe4 {[%clk 0:02:14.9]} 17... Bb7 {[%clk 0:02:44.1]} 18. O-O
{[%clk 0:02:14.1]} 18... Rf5 {[%clk 0:02:38]} 19. Rad1 {[%clk 0:01:53.8]} 19...
Qf8 {[%clk 0:02:34.1]} 20. Qc4 {[%clk 0:01:42.8]} 20... d6 {[%clk 0:02:07.8]}
21. Nd4 {[%clk 0:01:29.9]} 21... Bxd5 {[%clk 0:01:33.2]} 22. Nxd5 {[%clk
0:01:25.2]} 22... Rxd5 {[%clk 0:01:31.6]} 23. Nc6 {[%clk 0:01:23]} 23... Kg7
{[%clk 0:01:09.6]} 24. Rxd5 {[%clk 0:01:20.1]} 1-0

[Event "*** Titled Tuesday Blitz"]
[Site "Chess.com"]
[Date "2020.05.19"]
[Round "8"]
[White "gilbert_gm"]
[Black "Er_is_geen_hoop_meer"]
[Result "1-0"]
[WhiteElo "2611"]
[BlackElo "2439"]
[TimeControl "180+1"]
[EndTime "13:33:50 PDT"]
[Termination "gilbert_gm won by checkmate"]

1. d4 {[%clk 0:03:00.9]} 1... e5 {[%clk 0:02:57.4]} 2. dxe5 {[%clk 0:03:00.3]}
2... d6 {[%clk 0:02:57.5]} 3. exd6 {[%clk 0:02:59.4]} 3... Bxd6 {[%clk
0:02:57.6]} 4. g3 {[%clk 0:02:54.4]} 4... h5 {[%clk 0:02:56.8]} 5. Nf3 {[%clk
0:02:51.9]} 5... h4 {[%clk 0:02:56.9]} 6. Nxh4 {[%clk 0:02:48.8]} 6... Rxh4
{[%clk 0:02:57.1]} 7. gxh4 {[%clk 0:02:49.7]} 7... Qxh4 {[%clk 0:02:57.4]} 8.
Nc3 {[%clk 0:02:43.7]} 8... Nf6 {[%clk 0:02:54.6]} 9. Be3 {[%clk 0:02:39.2]}
9... Ng4 {[%clk 0:02:45.5]} 10. Qd2 {[%clk 0:02:39.7]} 10... Be6 {[%clk
0:02:40.5]} 11. O-O-O {[%clk 0:02:36.2]} 11... Nxe3 {[%clk 0:02:38.1]} 12. fxe3
{[%clk 0:02:37.1]} 12... Nc6 {[%clk 0:02:36.4]} 13. Bg2 {[%clk 0:02:36.2]} 13...
Ne5 {[%clk 0:02:33.4]} 14. Qd4 {[%clk 0:02:19.8]} 14... Qg5 {[%clk 0:02:28.5]}
15. Bxb7 {[%clk 0:02:12]} 15... Rb8 {[%clk 0:02:27.3]} 16. Bd5 {[%clk
0:02:11.9]} 16... Rb4 {[%clk 0:02:18.8]} 17. Qxa7 {[%clk 0:02:10.5]} 17... Bf5
{[%clk 0:02:17.9]} 18. Kb1 {[%clk 0:02:04.4]} 18... Qh4 {[%clk 0:02:10.5]} 19.
Rd4 {[%clk 0:02:01.8]} 19... Rxd4 {[%clk 0:02:04.6]} 20. exd4 {[%clk 0:02:02.7]}
20... Ng4 {[%clk 0:02:03.6]} 21. e4 {[%clk 0:01:57.7]} 21... Nf2 {[%clk
0:02:01.8]} 22. Rc1 {[%clk 0:01:49.6]} 22... Bf4 {[%clk 0:02:00]} 23. exf5
{[%clk 0:01:45.8]} 23... Bxc1 {[%clk 0:01:59.8]} 24. Qb8+ {[%clk 0:01:38.6]}
24... Kd7 {[%clk 0:01:54.5]} 25. Qf8 {[%clk 0:01:31.7]} 25... Bg5 {[%clk
0:01:41.9]} 26. Qxf7+ {[%clk 0:01:26.3]} 26... Kc8 {[%clk 0:01:27.6]} 27. Qe8+
{[%clk 0:01:20.2]} 27... Bd8 {[%clk 0:01:27.1]} 28. Qe6+ {[%clk 0:01:20]} 28...
Kb8 {[%clk 0:01:25.2]} 29. Qc6 {[%clk 0:01:19.9]} 29... Nd3 {[%clk 0:01:22.8]}
30. Qa8# {[%clk 0:01:18.9]} 1-0

[Event "*** Titled Tuesday Blitz"]
[Site "Chess.com"]
[Date "2020.05.19"]
[Round "8"]
[White "Spartakus1975"]
[Black "stoleriu"]
[Result "1-0"]
[WhiteElo "2692"]
[BlackElo "2550"]
[TimeControl "180+1"]
[EndTime "13:33:57 PDT"]
[Termination "Spartakus1975 won by resignation"]

1. e4 {[%clk 0:03:00.9]} 1... e6 {[%clk 0:02:56.5]} 2. d4 {[%clk 0:03:00.2]}
2... d5 {[%clk 0:02:57.4]} 3. Nd2 {[%clk 0:02:58.6]} 3... Be7 {[%clk 0:02:55.9]}
4. Bd3 {[%clk 0:02:49.9]} 4... c5 {[%clk 0:02:52.1]} 5. dxc5 {[%clk 0:02:45]}
5... Nf6 {[%clk 0:02:49.2]} 6. Qe2 {[%clk 0:02:43.5]} 6... O-O {[%clk
0:02:43.5]} 7. Ngf3 {[%clk 0:02:40.6]} 7... a5 {[%clk 0:02:40.3]} 8. O-O {[%clk
0:02:29.9]} 8... Na6 {[%clk 0:02:39.2]} 9. e5 {[%clk 0:02:21]} 9... Nd7 {[%clk
0:02:38.4]} 10. Nb3 {[%clk 0:02:18]} 10... a4 {[%clk 0:02:35.3]} 11. Nbd4 {[%clk
0:02:17.5]} 11... Ndxc5 {[%clk 0:02:26.5]} 12. Bf4 {[%clk 0:01:55.3]} 12... Nxd3
{[%clk 0:02:23.6]} 13. cxd3 {[%clk 0:01:54.9]} 13... Bd7 {[%clk 0:02:20]} 14. h4
{[%clk 0:01:51.9]} 14... Bxh4 {[%clk 0:02:09]} 15. g3 {[%clk 0:01:52]} 15... Be7
{[%clk 0:02:06.6]} 16. Kg2 {[%clk 0:01:52.4]} 16... Re8 {[%clk 0:01:54.1]} 17.
Rh1 {[%clk 0:01:50.9]} 17... Bf8 {[%clk 0:01:54.5]} 18. Rxh7 {[%clk 0:01:46.9]}
18... Kxh7 {[%clk 0:01:38]} 19. Ng5+ {[%clk 0:01:46.6]} 19... Qxg5 {[%clk
0:00:35.2]} 20. Bxg5 {[%clk 0:01:45.8]} 1-0

[Event "*** Titled Tuesday Blitz"]
[Site "Chess.com"]
[Date "2020.05.19"]
[Round "8"]
[White "Xeslu"]
[Black "calin_dragomirescu"]
[Result "1-0"]
[WhiteElo "2362"]
[BlackElo "2202"]
[TimeControl "180+1"]
[EndTime "13:34:01 PDT"]
[Termination "Xeslu won by checkmate"]

1. e4 {[%clk 0:02:59.4]} 1... g6 {[%clk 0:02:59.4]} 2. d4 {[%clk 0:02:58.2]}
2... Bg7 {[%clk 0:02:59.7]} 3. Nc3 {[%clk 0:02:57.5]} 3... d6 {[%clk 0:02:57.5]}
4. Nf3 {[%clk 0:02:56.2]} 4... Nf6 {[%clk 0:02:55.5]} 5. Be2 {[%clk 0:02:54.1]}
5... O-O {[%clk 0:02:54.9]} 6. O-O {[%clk 0:02:53.7]} 6... c5 {[%clk 0:02:54.9]}
7. dxc5 {[%clk 0:02:52.7]} 7... dxc5 {[%clk 0:02:55.1]} 8. Be3 {[%clk
0:02:53.3]} 8... b6 {[%clk 0:02:52.2]} 9. Qc1 {[%clk 0:02:52.5]} 9... Bb7 {[%clk
0:02:50.3]} 10. Rd1 {[%clk 0:02:51.6]} 10... Qc8 {[%clk 0:02:42.2]} 11. Nd5
{[%clk 0:02:41.5]} 11... Nxd5 {[%clk 0:02:28.7]} 12. exd5 {[%clk 0:02:40.5]}
12... Nd7 {[%clk 0:02:25.9]} 13. Bh6 {[%clk 0:02:25.8]} 13... Nf6 {[%clk
0:02:25.5]} 14. Bxg7 {[%clk 0:02:25.5]} 14... Kxg7 {[%clk 0:02:25.3]} 15. c4
{[%clk 0:02:26.4]} 15... e6 {[%clk 0:02:11.9]} 16. d6 {[%clk 0:02:14.5]} 16...
Qd8 {[%clk 0:01:53]} 17. Qc3 {[%clk 0:02:11.3]} 17... Kg8 {[%clk 0:01:50.3]} 18.
Ne5 {[%clk 0:02:03]} 18... Nd7 {[%clk 0:01:46.2]} 19. Ng4 {[%clk 0:02:01.5]}
19... f6 {[%clk 0:01:41.6]} 20. Bf3 {[%clk 0:01:57.6]} 20... Bxf3 {[%clk
0:01:39.1]} 21. Qxf3 {[%clk 0:01:56.8]} 21... Kg7 {[%clk 0:01:37.4]} 22. Qe3
{[%clk 0:01:56]} 22... g5 {[%clk 0:01:31.5]} 23. Qxe6 {[%clk 0:01:54.8]} 23...
h5 {[%clk 0:01:28.1]} 24. Ne3 {[%clk 0:01:52.8]} 24... Re8 {[%clk 0:01:22.3]}
25. Nf5+ {[%clk 0:01:50.8]} 25... Kg6 {[%clk 0:01:22.7]} 26. Ne7+ {[%clk
0:01:50.3]} 26... Kg7 {[%clk 0:01:22.9]} 27. f4 {[%clk 0:01:17.8]} 27... gxf4
{[%clk 0:01:20.7]} 28. Rd5 {[%clk 0:01:16.2]} 28... Ne5 {[%clk 0:01:20.1]} 29.
Rxe5 {[%clk 0:01:16]} 29... fxe5 {[%clk 0:01:19.8]} 30. Qg6+ {[%clk 0:01:16]}
30... Kh8 {[%clk 0:01:18]} 31. Qh6# {[%clk 0:01:16.1]} 1-0

[Event "*** Titled Tuesday Blitz"]
[Site "Chess.com"]
[Date "2020.05.19"]
[Round "8"]
[White "tsvet2005"]
[Black "Susal_De_Silva"]
[Result "1-0"]
[WhiteElo "2517"]
[BlackElo "2378"]
[TimeControl "180+1"]
[EndTime "13:34:08 PDT"]
[Termination "tsvet2005 won by resignation"]

1. d4 {[%clk 0:03:00.9]} 1... Nf6 {[%clk 0:03:00.2]} 2. c4 {[%clk 0:03:01.5]}
2... e6 {[%clk 0:03:00.5]} 3. Nc3 {[%clk 0:03:00.2]} 3... Bb4 {[%clk 0:03:00]}
4. f3 {[%clk 0:03:00.5]} 4... c5 {[%clk 0:02:58.5]} 5. d5 {[%clk 0:03:00.7]}
5... O-O {[%clk 0:02:58.8]} 6. e4 {[%clk 0:03:00.2]} 6... b5 {[%clk 0:02:59.1]}
7. Nh3 {[%clk 0:02:59.6]} 7... Re8 {[%clk 0:02:56.8]} 8. dxe6 {[%clk 0:02:55.3]}
8... dxe6 {[%clk 0:02:40.7]} 9. Qxd8 {[%clk 0:02:50.3]} 9... Rxd8 {[%clk
0:02:41.6]} 10. cxb5 {[%clk 0:02:50.2]} 10... Bb7 {[%clk 0:02:24.8]} 11. Be3
{[%clk 0:02:35.7]} 11... Nbd7 {[%clk 0:02:17.3]} 12. O-O-O {[%clk 0:02:26.5]}
12... Bxc3 {[%clk 0:01:54.3]} 13. bxc3 {[%clk 0:02:23.7]} 13... a6 {[%clk
0:01:55]} 14. bxa6 {[%clk 0:01:55.5]} 14... Bxa6 {[%clk 0:01:55.9]} 15. Rd2
{[%clk 0:01:56]} 15... Bxf1 {[%clk 0:01:32.3]} 16. Rxf1 {[%clk 0:01:56.9]} 16...
Ne5 {[%clk 0:01:29.8]} 17. Rxd8+ {[%clk 0:01:51.2]} 17... Rxd8 {[%clk
0:01:30.7]} 18. Rd1 {[%clk 0:01:50.1]} 18... Rc8 {[%clk 0:00:55.2]} 19. Bg5
{[%clk 0:01:37.2]} 19... Nfd7 {[%clk 0:00:49.9]} 20. f4 {[%clk 0:01:29]} 1-0

[Event "*** Titled Tuesday Blitz"]
[Site "Chess.com"]
[Date "2020.05.19"]
[Round "8"]
[White "wnstop"]
[Black "Shield12"]
[Result "0-1"]
[WhiteElo "2619"]
[BlackElo "2818"]
[TimeControl "180+1"]
[EndTime "13:34:19 PDT"]
[Termination "Shield12 won on time"]

1. e4 {[%clk 0:03:00.9]} 1... c5 {[%clk 0:02:59.9]} 2. Nf3 {[%clk 0:02:58.1]}
2... Nc6 {[%clk 0:03:00.2]} 3. Bb5 {[%clk 0:02:57.5]} 3... Nf6 {[%clk
0:02:59.9]} 4. Nc3 {[%clk 0:02:54.2]} 4... g6 {[%clk 0:02:59.4]} 5. O-O {[%clk
0:02:42.4]} 5... Bg7 {[%clk 0:02:58.9]} 6. e5 {[%clk 0:02:36.9]} 6... Ng4 {[%clk
0:02:58.5]} 7. Bxc6 {[%clk 0:02:37]} 7... dxc6 {[%clk 0:02:59.4]} 8. Re1 {[%clk
0:02:32.3]} 8... O-O {[%clk 0:02:59.5]} 9. h3 {[%clk 0:02:31.2]} 9... Nh6 {[%clk
0:02:59]} 10. Ne4 {[%clk 0:02:31.4]} 10... b6 {[%clk 0:02:58.8]} 11. d3 {[%clk
0:02:30.5]} 11... Nf5 {[%clk 0:02:59.3]} 12. c3 {[%clk 0:02:08.1]} 12... Ba6
{[%clk 0:02:56.2]} 13. g4 {[%clk 0:02:05.9]} 13... Nh6 {[%clk 0:02:54.3]} 14. d4
{[%clk 0:01:52.2]} 14... cxd4 {[%clk 0:02:51.6]} 15. Nxd4 {[%clk 0:01:42.8]}
15... c5 {[%clk 0:02:50.6]} 16. Nf3 {[%clk 0:01:37.1]} 16... Qxd1 {[%clk
0:02:49.4]} 17. Rxd1 {[%clk 0:01:38]} 17... Be2 {[%clk 0:02:49.8]} 18. Bxh6
{[%clk 0:01:20.8]} 18... Bxh6 {[%clk 0:02:46]} 19. Ne1 {[%clk 0:01:05.1]} 19...
Bxd1 {[%clk 0:02:43.9]} 20. Rxd1 {[%clk 0:01:06]} 20... Rfd8 {[%clk 0:02:40.7]}
21. Rxd8+ {[%clk 0:01:03.8]} 21... Rxd8 {[%clk 0:02:39.4]} 22. g5 {[%clk
0:01:04.7]} 22... Bg7 {[%clk 0:02:37.5]} 23. f4 {[%clk 0:01:04]} 23... Rd1
{[%clk 0:02:35]} 24. Kf2 {[%clk 0:01:03.9]} 24... Rb1 {[%clk 0:02:34.9]} 25. b3
{[%clk 0:00:04.8]} 25... Rb2+ {[%clk 0:02:32.9]} 26. Ke3 {[%clk 0:00:05.1]}
26... Rxa2 {[%clk 0:02:33.8]} 27. Nd2 {[%clk 0:00:02.8]} 27... h6 {[%clk
0:02:30.9]} 28. h4 {[%clk 0:00:02.3]} 28... hxg5 {[%clk 0:02:31.1]} 29. hxg5
{[%clk 0:00:03.2]} 29... f6 {[%clk 0:02:30.6]} 30. Nd3 {[%clk 0:00:03.5]} 30...
fxg5 {[%clk 0:02:30.2]} 31. fxg5 {[%clk 0:00:03.5]} 31... Kf7 {[%clk 0:02:29.5]}
32. Nf3 {[%clk 0:00:01.5]} 32... Ra3 {[%clk 0:02:23.4]} 0-1

[Event "*** Titled Tuesday Blitz"]
[Site "Chess.com"]
[Date "2020.05.19"]
[Round "8"]
[White "CHESSMASTER759"]
[Black "Maghalashvili"]
[Result "0-1"]
[WhiteElo "2666"]
[BlackElo "2813"]
[TimeControl "180+1"]
[EndTime "13:34:23 PDT"]
[Termination "Maghalashvili won by resignation"]

1. e4 {[%clk 0:02:31.5]} 1... c5 {[%clk 0:02:52.4]} 2. c3 {[%clk 0:02:29.7]}
2... g6 {[%clk 0:02:41.7]} 3. d4 {[%clk 0:02:28.9]} 3... cxd4 {[%clk 0:02:40.5]}
4. cxd4 {[%clk 0:02:29.5]} 4... d5 {[%clk 0:02:37.9]} 5. exd5 {[%clk 0:02:28]}
5... Nf6 {[%clk 0:02:31.8]} 6. Nc3 {[%clk 0:02:28.9]} 6... Bg7 {[%clk
0:02:28.6]} 7. Bb5+ {[%clk 0:02:28.7]} 7... Nbd7 {[%clk 0:02:25.9]} 8. Nge2
{[%clk 0:02:25.5]} 8... O-O {[%clk 0:02:23.7]} 9. O-O {[%clk 0:02:26]} 9... Nb6
{[%clk 0:02:20.7]} 10. a3 {[%clk 0:02:22.2]} 10... Nbxd5 {[%clk 0:02:11.7]} 11.
Bc4 {[%clk 0:02:21.8]} 11... b6 {[%clk 0:02:07.9]} 12. Nxd5 {[%clk 0:02:14.1]}
12... Nxd5 {[%clk 0:02:05.7]} 13. Nc3 {[%clk 0:02:14.6]} 13... Nxc3 {[%clk
0:02:02.8]} 14. bxc3 {[%clk 0:02:14.1]} 14... Bb7 {[%clk 0:02:01.2]} 15. Bd2
{[%clk 0:02:08.9]} 15... Rc8 {[%clk 0:01:55.6]} 16. Ba2 {[%clk 0:02:03.4]} 16...
e5 {[%clk 0:01:52.9]} 17. dxe5 {[%clk 0:01:50.4]} 17... Bxe5 {[%clk 0:01:52]}
18. Re1 {[%clk 0:01:50.9]} 18... Bxc3 {[%clk 0:01:45.5]} 19. Bxc3 {[%clk
0:01:36.4]} 19... Rxc3 {[%clk 0:01:45.3]} 20. Qxd8 {[%clk 0:01:30.8]} 20... Rxd8
{[%clk 0:01:44.5]} 21. Re7 {[%clk 0:01:31.7]} 21... Rxa3 {[%clk 0:01:28.9]} 22.
Bxf7+ {[%clk 0:01:18.8]} 22... Kf8 {[%clk 0:01:28.4]} 23. Rae1 {[%clk
0:01:19.7]} 23... Ra1 {[%clk 0:01:18.8]} 24. Bb3 {[%clk 0:01:14.1]} 24... Rxe1+
{[%clk 0:01:16.5]} 25. Rxe1 {[%clk 0:01:15]} 25... a5 {[%clk 0:01:08.2]} 26. f3
{[%clk 0:01:14.8]} 26... Rd6 {[%clk 0:01:03.8]} 27. Bc4 {[%clk 0:01:13.4]} 27...
Bc8 {[%clk 0:00:56.2]} 0-1